fUST/lending_fUST_20240506
["ID","MTS","AMOUNT","RATE_DAILY","PERIOD"]
[326455494,1714932655802,-1218.94,0.00020257,2]
[326455495,1714932655812,-151.0,0.00020257,2]
[326455496,1714932655821,-2360.19,0.00020257,2]
[326455497,1714932655830,-500.0,0.00020257,2]
[326455498,1714932655845,-251.07383,0.00020257,2]
[326455499,1714932655855,-251.07383,0.00020257,2]
[326455500,1714932655865,-500.0,0.00020257,2]
[326455501,1714932655874,-500.0,0.00020257,2]
[326455502,1714932655886,-251.07383,0.00020257,2]
[326455503,1714932655895,-251.07383,0.00020257,2]
[326455504,1714932655905,-500.0,0.00020257,2]
[326455505,1714932655916,-500.0,0.00020257,2]
[326455506,1714932655925,-500.0,0.00020257,2]
[326455507,1714932655934,-571.56,0.00020257,2]
[326455508,1714932655944,-500.0,0.00020257,2]
[326455509,1714932655953,-500.0,0.00020257,2]
[326455510,1714932655962,-697.11,0.00020257,2]
[326455511,1714932655971,-500.0,0.00020257,2]
[326455512,1714932655981,-500.0,0.00020257,2]
[326455513,1714932655990,-500.0,0.00020257,2]
[326455514,1714932655999,-795.16,0.00020257,2]
[326455515,1714932656009,-500.0,0.00020257,2]
[326455516,1714932656018,-500.0,0.00020257,2]
[326455517,1714932656028,-728.25,0.00020257,2]
[326455518,1714932656039,-500.0,0.00020257,2]
[326455519,1714932656049,-500.0,0.00020257,2]
[326455520,1714932656059,-500.0,0.00020257,2]
[326455521,1714932656068,-7737.07,0.00020257,2]
[326455522,1714932656077,-670.08,0.00020257,2]
[326455523,1714932656087,-500.0,0.00020257,2]
[326455524,1714932656096,-828.34,0.00020257,2]
[326455525,1714932656105,-500.0,0.00020257,2]
[326455526,1714932656116,-500.0,0.00020257,2]
[326455527,1714932656127,-500.0,0.00020257,2]
[326455528,1714932656136,-657.38,0.00020257,2]
[326455529,1714932656145,-500.0,0.00020257,2]
[326455530,1714932656154,-9343.4,0.00020257,2]
[326455531,1714932656163,-2008.79,0.00020257,2]
[326455532,1714932656172,-500.0,0.00020257,2]
[326455533,1714932656181,-610.1,0.00020257,2]
[326455534,1714932656190,-6620.98,0.00020257,2]
[326455535,1714932656199,-840.73,0.00020257,2]
[326455536,1714932656208,-500.0,0.00020257,2]
[326455537,1714932656218,-500.0,0.00020257,2]
[326455538,1714932656227,-625.37,0.00020257,2]
[326455539,1714932656236,-732.98,0.00020257,2]
[326455540,1714932656246,-736.31,0.00020257,2]
[326455541,1714932656255,-500.0,0.00020257,2]
[326455542,1714932656264,-8391.77,0.00020257,2]
[326455543,1714932656274,-500.0,0.00020257,2]
[326455544,1714932656284,-1469.32,0.00020257,2]
[326455545,1714932656293,-500.0,0.00020257,2]
[326455546,1714932656302,-3095.76,0.00020257,2]
[326455547,1714932656311,-500.0,0.00020257,2]
[326455548,1714932656321,-500.0,0.00020257,2]
[326455549,1714932656331,-2797.89,0.00020257,2]
[326455550,1714932656340,-1581.34,0.00020257,2]
[326455551,1714932656350,-460.00000092,0.00020257,2]
[326455552,1714932656439,-519.49811387,0.00020257,2]
[326455553,1714932656459,-500.0,0.00020257,2]
[326455554,1714932656468,-8873.88142983,0.00020257,2]
[326455555,1714932662017,161.643618,0.00019178,2]
[326455556,1714932665258,181.953389,0.00019121,2]
[326455557,1714932690409,314.82243626,0.00019173,2]
[326455558,1714932690428,869.16532104,0.00019173,2]
[326455559,1714932746491,150.0,0.000189,2]
[326455560,1714932781036,212.47908276,9.999e-05,2]
[326455561,1714932783166,1335.86013751,9.999e-05,2]
[326455562,1714932849189,679.835112,0.0001589,2]
[326455591,1714933255502,584.01124447,9.999e-05,2]
[326455592,1714933514706,475.62429208,9.999e-05,2]
[326455593,1714933531325,-309.10662093,0.00018707,2]
[326455594,1714933531346,-584.01124447,0.00018708,2]
[326455595,1714933531366,-89.5610606,0.00018711,2]
[326455602,1714933539118,-92.3923284,0.00018711,2]
[326455603,1714933539146,-150.0,0.000189,2]
[326455604,1714933539169,-626.52140588,0.00018956,2]
[326455605,1714933545063,151.0,0.000157,2]
[326455620,1714933626129,-309.10662093,0.00018799,2]
[326455621,1714933626152,-34.97193396,0.000188,3]
[326455622,1714933650203,-590.40487321,0.000188,3]
[326455623,1714933651110,-3049.62344692,0.000188,3]
[326455671,1714933751115,-309.10662093,0.00018799,2]
[326455672,1714933751134,-165.64963382,0.000188,3]
[326455673,1714933751153,-150.0,0.000189,2]
[326455674,1714933751173,-167.2231327,0.00019178,2]
[326455714,1714933832278,-309.10662093,0.0001976,2]
[326455715,1714933832288,-189.1951072,0.00019761,2]
[326455716,1714933832297,-150.0,0.00019873,3]
[326455717,1714933832307,-473.483309,0.00019975,2]
[326455718,1714933832318,-586.2783073,0.00019975,2]
[326455719,1714933832327,-500.0,0.00019976,2]
[326455720,1714933832336,-464.10244725,0.00019976,2]
[326455721,1714933832346,-364.39574749,0.00019976,2]
[326455722,1714933832355,-412.69576161,0.00019976,2]
[326455723,1714933832364,-500.0,0.00019976,2]
[326455724,1714933832374,-500.0,0.00019976,2]
[326455725,1714933832383,-415.22339902,0.00019976,2]
[326455726,1714933832395,-84.77660098,0.00019976,2]
[326455727,1714933832406,-244.38662734,0.00019976,2]
[326455798,1714933838249,-255.61337266,0.00019976,2]
[326455800,1714933838259,-500.0,0.00019976,2]
[326455802,1714933838269,-500.0,0.00019976,2]
[326455804,1714933838278,-500.0,0.00019976,2]
[326455806,1714933838288,-500.0,0.00019976,2]
[326455808,1714933838297,-500.0,0.00019976,2]
[326455810,1714933838306,-500.0,0.00019976,2]
[326455812,1714933838319,-301.68407491,0.00019976,2]
[326455814,1714933838329,-650.0,0.00019976,2]
[326455816,1714933838338,-500.0,0.00019976,2]
[326455818,1714933838348,-156.16960606,0.00019976,2]
[326455820,1714933838357,-418.3165415,0.00019976,2]
[326455823,1714933838367,-500.0,0.00019976,2]
[326455826,1714933838376,-500.0,0.00019976,2]
[326455829,1714933838385,-293.7796427,0.00019976,2]
[326455832,1714933838395,-500.0,0.00019976,2]
[326455835,1714933838405,-500.0,0.00019976,2]
[326455838,1714933838414,-500.0,0.00019976,2]
[326455841,1714933838424,-500.0,0.00019976,2]
[326455844,1714933838434,-500.0,0.00019976,2]
[326455847,1714933838444,-500.0,0.00019976,2]
[326455849,1714933838454,-500.0,0.00019976,2]
[326455851,1714933838463,-500.0,0.00019976,2]
[326455854,1714933838473,-500.0,0.00019976,2]
[326455856,1714933838482,-500.0,0.00019976,2]
[326455858,1714933838492,-128.57584744,0.00019976,2]
[326455870,1714933838597,-96.54597047,0.00019976,2]
[326456144,1714933841750,-274.87818209,0.00019976,2]
[326456145,1714933841759,-666.06,0.00019976,2]
[326456146,1714933841769,-72.72554453,0.00019976,2]
[326456168,1714933843497,-265.88911423,0.00019975,7]
[326456170,1714933843507,-387.24332676,0.00019976,2]
[326456172,1714933843516,-500.0,0.00019976,2]
[326456174,1714933843525,-3164.66,0.00019976,2]
[326456176,1714933843535,-2510.05670968,0.00019977,5]
[326456178,1714933843545,-7805.20396198,0.00019977,2]
[326456197,1714933877437,537.573407,0.0001589,2]
[326456281,1714934275214,186.48709187,9.999e-05,2]
[326456289,1714934350242,162.4745791,0.0001589,2]
[326456294,1714934513434,265.88911423,9.999e-05,7]
[326456310,1714934740119,-265.88911423,0.00018783,7]
[326456311,1714934740140,-1057.2082621,0.00018784,2]
[326456312,1714934740161,-338.89652037,0.00019376,2]
[326456313,1714934835112,-265.88911423,0.00019375,7]
[326456314,1714934835133,-281.11464239,0.00019376,2]
[326456315,1714934835154,-150.0,0.0001987,3]
[326456316,1714934835176,-185.03902845,0.00019874,2]
[326456317,1714934835197,-185.03902843,0.00019876,2]
[326456318,1714934835217,-185.03902843,0.00019878,2]
[326456319,1714934835237,-185.03902843,0.0001988,2]
[326456320,1714934835257,-150.42541515,0.00019964,3]
[326456321,1714934836128,-170.44720555,0.00019964,3]
[326456322,1714934841102,-95.1173793,0.00019964,3]
[326456323,1714934841123,-154.64431807,0.00019972,2]
[326456324,1714934841143,-2896.17453275,0.00019972,2]
[326456325,1714934926826,198.549735,0.0001589,2]
[326456377,1714935032987,-279.81654273,0.00019972,7]
[326456378,1714935032997,-135.56980383,0.00019972,2]
[326456379,1714935033008,-19.1980444,0.00019972,2]
[326456380,1714935033017,-475.62429208,0.00019972,2]
[326456381,1714935033027,-604.16564927,0.00019972,2]
[326456382,1714935033036,-17318.11323258,0.00019972,2]
[326456383,1714935033045,-500.0,0.00019972,2]
[326456384,1714935033055,-500.0,0.00019972,2]
[326456385,1714935033063,-616.97,0.00019972,2]
[326456386,1714935033072,-228.15895808,0.00019972,2]
[326456387,1714935033082,-500.0,0.00019972,2]
[326456388,1714935033091,-311.29823055,0.00019972,2]
[326456389,1714935033100,-350.0,0.00019972,2]
[326456390,1714935033110,-24596.03262226,0.00019973,2]
[326456392,1714935033120,-391.1553264,0.00019973,2]
[326456394,1714935033129,-324.81881441,0.00019973,2]
[326456396,1714935033138,-500.0,0.00019973,2]
[326456398,1714935033148,-155.17536563,0.00019973,2]
[326456400,1714935033157,-189.92948781,0.00019973,2]
[326456401,1714935033166,-186.86673207,0.00019973,2]
[326456402,1714935033176,-3140.34219364,0.00019973,7]
[326456403,1714935033185,-154.64431807,0.00019973,2]
[326456404,1714935033194,-519.57837386,0.00019973,2]
[326456406,1714935033203,-500.0,0.00019973,2]
[326456408,1714935033212,-500.0,0.00019973,2]
[326456410,1714935033222,-380.87625861,0.00019973,2]
[326456412,1714935033231,-1000.0,0.00019973,2]
[326456414,1714935033240,-500.0,0.00019973,2]
[326456416,1714935033251,-500.0,0.00019973,2]
[326456419,1714935033261,-561.33581826,0.00019973,2]
[326456421,1714935033270,-500.0,0.00019973,2]
[326456423,1714935033280,-500.0,0.00019973,2]
[326456425,1714935033288,-500.0,0.00019973,2]
[326456427,1714935033297,-272.51171882,0.00019973,2]
[326456429,1714935033306,-500.0,0.00019973,2]
[326456431,1714935033315,-576.64,0.00019973,2]
[326456433,1714935033325,-500.0,0.00019973,2]
[326456435,1714935033334,-13700.53,0.00019973,2]
[326456437,1714935033344,-500.0,0.00019973,2]
[326456439,1714935033353,-1383.99,0.00019973,2]
[326456441,1714935033362,-500.0,0.00019973,2]
[326456443,1714935033372,-500.0,0.00019973,2]
[326456445,1714935033381,-500.0,0.00019973,2]
[326456447,1714935033390,-500.0,0.00019973,2]
[326456449,1714935033399,-500.0,0.00019973,2]
[326456451,1714935033408,-1883.79,0.00019973,2]
[326456453,1714935033417,-762.31,0.00019973,2]
[326456455,1714935033426,-885.22,0.00019973,2]
[326456457,1714935033435,-7126.10999935,0.00019973,2]
[326456606,1714935038415,-214.54000065,0.00019973,2]
[326456607,1714935038424,-500.0,0.00019973,2]
[326456608,1714935038433,-978.92,0.00019973,2]
[326456609,1714935038442,-513.09103466,0.00019973,2]
[326456610,1714935038453,-2689.63896534,0.00019973,2]
[326456611,1714935038462,-1568.78544354,0.00019973,5]
[326456612,1714935038471,-27741.57559112,0.00019974,2]
[326456613,1714935038553,-360.42760098,0.00019974,2]
[326457118,1714935046606,-154.64431807,0.00019974,2]
[326457196,1714935167834,154.58262691,9.999e-05,2]
[326457206,1714935410894,164.27828,0.0001589,2]
[326457207,1714935901932,364.24845014,0.0001589,2]
[326457208,1714935921417,364.24845014,0.0001589,2]
[326457209,1714935939436,364.24845014,0.0001589,2]
[326457210,1714935941152,-897.3070039,0.00018967,2]
[326457211,1714935941172,-150.0,0.00019861,3]
[326457212,1714935941194,-354.88958755,0.00019869,2]
[326457213,1714935941214,-240.02,0.00019958,3]
[326457214,1714935941237,-168.57687541,0.00019958,3]
[326457215,1714935962010,275.77287491,0.0001589,2]
[326457216,1714935971347,645.843356,0.0001589,2]
[326457217,1714936031105,-71.44312459,0.00019958,3]
[326457218,1714936031126,-240.02,0.00019958,3]
[326457219,1714936031146,-319.04491487,0.00019967,2]
[326457220,1714936031166,-500.0,0.00019967,2]
[326457221,1714936031189,-532.49394941,0.00019968,5]
[326457222,1714936054097,-3219.34922179,0.00019968,2]
[326457224,1714936148106,-2245.6136882,0.0001897,2]
[326457225,1714936148129,-1373.983849,0.000197,2]
[326457248,1714936231717,480.0086355,0.00018968,2]
[326457281,1714936233131,-150.0,0.00019854,3]
[326457283,1714936233141,-240.02,0.00019958,3]
[326457285,1714936233150,-720.06,0.00019958,3]
[326457286,1714936233159,-500.0,0.00019967,2]
[326457289,1714936233168,-500.0,0.00019967,2]
[326457291,1714936233177,-500.0,0.00019967,2]
[326457293,1714936233187,-500.0,0.00019967,2]
[326457295,1714936233195,-591.26,0.00019967,2]
[326457296,1714936233204,-500.0,0.00019967,2]
[326457299,1714936233214,-518.14574707,0.00019968,5]
[326457300,1714936233223,-5976.92738641,0.00019968,2]
[326457671,1714936241172,-658.41944326,0.00019967,2]
[326457674,1714936241185,-13.22055674,0.00019967,2]
[326457676,1714936241194,-3331.66394464,0.00019968,2]
[326457833,1714936247025,-354.88958755,0.00019968,2]
[326457848,1714936330410,161.238169,0.00019178,2]
[326457849,1714936332480,250.81345317,0.00018967,2]
[326457852,1714937088702,510.694736,0.0001589,2]
[326457853,1714937156140,-187.3180561,0.00018842,2]
[326457854,1714937156161,-181.9533902,0.00018899,2]
[326457855,1714937156182,-254.2381339,0.00019044,2]
[326457856,1714937227098,-929.7496234,0.00019044,2]
[326457857,1714937227123,-620.00055813,0.00019328,2]
[326457858,1714937227148,-161.98182993,0.00019777,2]
[326457859,1714937227174,-150.0,0.00019859,3]
[326457860,1714937227201,-177.44479377,0.00019865,2]
[326457861,1714937227226,-177.44479377,0.00019866,2]
[326457862,1714937227253,-192.6103015,0.00019866,2]
[326457863,1714937227279,-1506.63967422,0.00019866,2]
[326457891,1714937433872,-150.0,0.0001986,3]
[326457893,1714937433882,-1396.26445837,0.00019864,2]
[326457896,1714937433893,-168.53401376,0.00019865,2]
[326457898,1714937433902,-168.53401375,0.00019866,2]
[326457899,1714937433912,-168.53401375,0.00019866,2]
[326457901,1714937433922,-168.53401375,0.00019867,2]
[326457903,1714937433932,-168.53401375,0.00019868,2]
[326457905,1714937433942,-168.53401375,0.00019869,2]
[326457906,1714937433952,-168.53401375,0.00019869,2]
[326457907,1714937433962,-168.53401375,0.0001987,2]
[326457908,1714937433971,-480.04,0.00019954,3]
[326457909,1714937433981,-282.33128121,0.00019963,2]
[326457910,1714937433991,-217.59155835,0.00019963,2]
[326457911,1714937434000,-500.0,0.00019963,2]
[326457912,1714937434009,-566.62,0.00019963,2]
[326457913,1714937434019,-500.0,0.00019963,2]
[326457914,1714937434028,-502.74411352,0.00019963,2]
[326457915,1714937434038,-500.0,0.00019963,2]
[326457916,1714937434048,-500.0,0.00019963,2]
[326457917,1714937434057,-500.0,0.00019963,2]
[326457918,1714937434067,-259.07287353,0.00019964,5]
[326457919,1714937434076,-8845.06493414,0.00019964,2]
[326457920,1714937434086,-36013.04994882,0.00019964,2]
[326457921,1714937434126,-5000.0,0.00019964,2]
[326457922,1714937434138,-1018.35675043,0.00019964,2]
[326457923,1714937434149,-161965.15245898,0.00019964,2]
[326457924,1714937434161,-1385.57647358,0.00019964,2]
[326457935,1714937439105,-996.46779056,0.00019964,2]
[326458073,1714937441259,-301.54767848,0.00019964,2]
[326458074,1714937441489,-3136.25024672,0.00019964,2]
[326458101,1714937782052,1042.52326987,9.999e-05,2]
[326458114,1714938130249,1396.26445837,9.999e-05,2]
[326458120,1714938354192,-167.08174338,0.00018795,2]
[326458121,1714938354212,-971.92602973,0.00018894,2]
[326458126,1714938427103,-424.33842864,0.00018894,2]
[326458127,1714938427123,-215.446684,0.00018895,2]
[326458128,1714938427142,-161.035444,0.00019178,2]
[326458129,1714938427163,-150.0,0.00019834,3]
[326458130,1714938427181,-1000.0,0.0001986,2]
[326458131,1714938427201,-185.17309777,0.00019861,2]
[326458132,1714938427220,-493.36032578,0.00019862,2]
[326458133,1714938427240,-185.17309777,0.00019862,2]
[326458134,1714938427260,-1195.67791677,0.00019863,2]
[326458135,1714938440096,-163.69536414,0.00019863,2]
[326458139,1714938489084,5337.30376508,0.0002,20]
[326458140,1714938511189,154.59804508,9.999e-05,2]
[326458143,1714938566147,164.27828,0.0001589,2]
[326458168,1714938631855,-150.0,0.00019828,3]
[326458169,1714938631865,-100.0,0.00019862,2]
[326458170,1714938631877,-1296.26445837,0.00019862,2]
[326458171,1714938631887,-18854.91448442,0.00019863,2]
[326458172,1714938631896,-2267.29536211,0.00019864,2]
[326458173,1714938631906,-1201.45672205,0.0001987,2]
[326458174,1714938631918,-155.76,0.0001995,3]
[326458175,1714938631927,-551.24147659,0.00019958,2]
[326458176,1714938631937,-1119.27266911,0.00019958,7]
[326458177,1714938631947,-312.78580014,0.00019958,2]
[326458178,1714938631957,-500.0,0.00019958,2]
[326458179,1714938631968,-303.1053878,0.00019958,2]
[326458180,1714938631978,-155.50803679,0.00019958,2]
[326458181,1714938631987,-500.0,0.00019958,2]
[326458182,1714938631996,-500.0,0.00019958,2]
[326458183,1714938632006,-500.0,0.00019958,2]
[326458184,1714938632017,-154.64431807,0.00019959,2]
[326458185,1714938632025,-500.0,0.00019959,2]
[326458186,1714938632034,-500.0,0.00019959,2]
[326458187,1714938632044,-500.0,0.00019959,2]
[326458188,1714938632054,-500.0,0.00019959,2]
[326458189,1714938632064,-1000.0,0.00019959,2]
[326458190,1714938632073,-500.0,0.00019959,2]
[326458191,1714938632082,-500.0,0.00019959,2]
[326458192,1714938632091,-500.0,0.00019959,2]
[326458193,1714938632100,-500.0,0.00019959,2]
[326458194,1714938632111,-500.0,0.00019959,2]
[326458195,1714938632120,-500.0,0.00019959,2]
[326458196,1714938632130,-500.0,0.00019959,2]
[326458197,1714938632140,-500.0,0.00019959,2]
[326458198,1714938632149,-500.0,0.00019959,2]
[326458199,1714938632158,-500.0,0.00019959,2]
[326458200,1714938632168,-500.0,0.00019959,2]
[326458201,1714938632177,-500.0,0.00019959,2]
[326458202,1714938632186,-500.0,0.00019959,2]
[326458203,1714938632196,-500.0,0.00019959,2]
[326458204,1714938632205,-500.0,0.00019959,2]
[326458205,1714938632214,-500.0,0.00019959,2]
[326458206,1714938632223,-500.0,0.00019959,2]
[326458207,1714938632233,-519.29758035,0.00019959,2]
[326458208,1714938632242,-500.0,0.00019959,2]
[326458209,1714938632251,-500.0,0.00019959,2]
[326458210,1714938632260,-500.0,0.00019959,2]
[326458211,1714938632271,-500.0,0.00019959,2]
[326458212,1714938632280,-500.0,0.00019959,2]
[326458213,1714938632289,-500.0,0.00019959,2]
[326458214,1714938632298,-555.50600916,0.00019959,2]
[326458215,1714938632308,-500.0,0.00019959,2]
[326458216,1714938632317,-500.0,0.00019959,2]
[326458217,1714938632327,-500.0,0.00019959,2]
[326458218,1714938632336,-500.0,0.00019959,2]
[326458219,1714938632346,-500.0,0.00019959,2]
[326458220,1714938632356,-500.0,0.00019959,2]
[326458221,1714938632366,-500.0,0.00019959,2]
[326458222,1714938632375,-598.69504784,0.00019959,2]
[326458223,1714938632385,-500.0,0.00019959,2]
[326458224,1714938632395,-265.49792789,0.00019959,2]
[326458225,1714938632404,-500.0,0.00019959,2]
[326458226,1714938632414,-500.0,0.00019959,2]
[326458227,1714938632423,-500.0,0.00019959,2]
[326458228,1714938632432,-500.0,0.00019959,2]
[326458229,1714938632441,-500.0,0.00019959,2]
[326458230,1714938632451,-730.55,0.00019959,2]
[326458231,1714938632460,-500.0,0.00019959,2]
[326458232,1714938632470,-500.0,0.00019959,2]
[326458233,1714938632479,-3392.5885475,0.0001996,5]
[326458234,1714938632489,-3101.11867477,0.0001996,2]
[326458343,1714938640016,-467.28,0.0001995,3]
[326458345,1714938640025,-532.72,0.00019958,2]
[326458383,1714938645852,-36.91,0.00019958,2]
[326458384,1714938645862,-2941.39,0.00019958,2]
[326458385,1714938645872,-1396.26445837,0.00019959,2]
[326458386,1714938645882,-1321.4137923,0.0001996,2]
[326458387,1714938645891,-275.53460552,0.0001996,2]
[326458388,1714938645900,-13767.15762947,0.0001996,2]
[326458391,1714938703281,545.77409168,0.000138,2]
[326458392,1714938703301,198.45778345,0.000138,2]
[326458400,1714938734266,221.382144,0.00019178,2]
[326458416,1714939034004,613.551188,0.0001589,2]
[326458422,1714939288387,1396.26445837,9.999e-05,2]
[326458453,1714939548116,-941.95172226,0.00019279,2]
[326458454,1714939548135,-169.82758292,0.00019713,2]
[326458455,1714939548156,-150.0,0.00019813,3]
[326458456,1714939548176,-116.41580987,0.00019856,2]
[326458457,1714939631145,-61.02898391,0.00019856,2]
[326458458,1714939631167,-204.71092819,0.00019857,2]
[326458459,1714939639266,-178.63086367,0.00019856,2]
[326458460,1714939639286,-863.88156044,0.00019857,2]
[326458461,1714939639309,-177.44479377,0.00019857,2]
[326458462,1714939639330,-262.04465924,0.00019857,2]
[326458463,1714939639352,-262.04465921,0.00019858,2]
[326458464,1714939639370,-2370.30268546,0.00019858,2]
[326458465,1714939745130,-1373.983849,0.000195,2]
[326458468,1714939807103,161.238169,0.00019178,2]
[326458469,1714939809370,154.59804508,0.000195,2]
[326458470,1714939821373,154.59804508,0.000195,2]
[326458471,1714939822332,250.8134531,0.00018918,2]
[326458482,1714939832021,-150.0,0.00019852,3]
[326458483,1714939832030,-196.53349446,0.00019856,2]
[326458484,1714939832039,-196.5334944,0.00019857,2]
[326458485,1714939832048,-1996.80356623,0.00019858,2]
[326458486,1714939832058,-196.5334944,0.00019858,2]
[326458487,1714939832067,-196.5334944,0.00019859,2]
[326458488,1714939832075,-5777.49171674,0.0001986,2]
[326458489,1714939832084,-196.5334944,0.0001986,2]
[326458490,1714939832093,-196.5334944,0.00019861,2]
[326458491,1714939832103,-196.5334944,0.00019862,2]
[326458492,1714939832113,-173.03,0.00019945,3]
[326458493,1714939832122,-519.14,0.00019945,3]
[326458494,1714939832131,-156.80771504,0.00019954,2]
[326458495,1714939832140,-500.0,0.00019954,2]
[326458496,1714939832149,-557.69973115,0.00019954,2]
[326458497,1714939832158,-500.0,0.00019954,2]
[326458498,1714939832167,-545.89,0.00019954,2]
[326458499,1714939832176,-500.0,0.00019954,2]
[326458500,1714939832185,-1696.29427375,0.00019955,5]
[326458501,1714939832194,-3820.94084443,0.00019955,2]
[326458502,1714939832208,-186.86673207,0.00019955,2]
[326458503,1714939832218,-2250.48498234,0.00019955,7]
[326458594,1714939838160,-196.5334944,0.00019863,2]
[326458596,1714939838169,-188.23233526,0.00019954,2]
[326458694,1714939839374,154.59804508,0.000195,2]
[326458758,1714939840230,-311.76766474,0.00019954,2]
[326458759,1714939840239,-664.49,0.00019954,2]
[326458760,1714939840249,-889.8572113,0.00019955,7]
[326458761,1714939840258,-634.58428458,0.00019955,2]
[326458762,1714939840267,-3593.9382,0.00019955,2]
[326458989,1714939843254,-624.421824,0.00019955,2]
[326458991,1714939843266,-5670.6,0.00019955,2]
[326459003,1714939843376,-2007.12527506,0.00019955,2]
[326459298,1714939846204,-1379.21652243,0.00019954,2]
[326459642,1714939849851,58.35593717,0.00018958,2]
[326459646,1714939849872,421.65269833,0.00018958,2]
[326463954,1714939908097,154.59804508,0.00018958,2]
[326463955,1714939923879,296.80215157,0.00018958,2]
[326463956,1714939923902,3.90954114,0.00018958,2]
[326463957,1714939970669,194.01502921,9.999e-05,2]
[326463958,1714940012192,891.62875987,9.999e-05,2]
[326463959,1714940015065,154.59804508,9.999e-05,2]
[326463960,1714940025895,1679.61395979,0.00015,2]
[326463961,1714940052618,1146.99564374,0.00015,2]
[326463962,1714940091894,485.159999,0.0001589,2]
[326463963,1714940110976,1493.11557101,9.999e-05,2]
[326463964,1714940714619,350.68177519,9.999e-05,2]
[326463965,1714940714646,1142.43379582,9.999e-05,2]
[326463966,1714940827145,-605.93620181,0.00018852,2]
[326463967,1714940827178,-496.09045886,0.00018852,2]
[326463968,1714940854198,-391.08891034,0.00018852,2]
[326463969,1714940854219,-832.2563493,0.00018853,2]
[326463970,1714940854239,-150.0,0.000189,2]
[326463971,1714940854259,-160.962872,0.00019178,2]
[326463972,1714940854279,-161.98182993,0.00019764,2]
[326463973,1714940854299,-586.08,0.0001984,3]
[326463974,1714940854488,-207.2290297,0.00019848,2]
[326463975,1714940854509,-2365.81229484,0.00019848,2]
[326463976,1714940947099,-1493.11557101,0.00018752,2]
[326463977,1714940947119,-929.7496234,0.00018753,2]
[326463978,1714940947139,-150.0,0.000189,2]
[326463979,1714940947160,-221.382144,0.00019178,2]
[326464005,1714941032308,-1493.11557101,0.00019747,2]
[326464006,1714941032319,-177.44479377,0.00019747,2]
[326464007,1714941032328,-1506.63967422,0.00019748,2]
[326464008,1714941032338,-177.44479377,0.00019751,2]
[326464010,1714941032347,-192.6103015,0.00019751,2]
[326464011,1714941032355,-500.0,0.00019846,2]
[326464013,1714941032364,-519.57837386,0.00019846,2]
[326464014,1714941032373,-40503.42613492,0.00019847,2]
[326464050,1714941041154,-391.1553264,0.00019846,2]
[326464051,1714941041164,-324.81881441,0.00019846,2]
[326464052,1714941041173,-500.0,0.00019846,2]
[326464054,1714941041183,-500.0,0.00019846,2]
[326464056,1714941041192,-500.0,0.00019846,2]
[326464058,1714941041202,-6676.60326969,0.00019846,2]
[326464060,1714941041214,-17384.03734793,0.00019846,2]
[326464062,1714941041225,-35210.05712218,0.00019846,2]
[326464064,1714941041235,-6243.75045971,0.00019847,2]
[326464214,1714941047062,-380.87625861,0.00019846,2]
[326464215,1714941047072,-255.26627801,0.00019847,2]
[326464216,1714941047082,-2725.10746338,0.00019847,2]
[326464217,1714941157563,240.19230089,9.999e-05,2]
[326464220,1714941338446,164.27828,0.0001589,2]
[326464230,1714941366954,-200.0,0.00026665,120]
[326464245,1714941440862,469.31894033,9.999e-05,2]
[326464250,1714941474805,793.44154841,9.999e-05,2]
[326464251,1714941478703,1092.51303732,9.999e-05,2]
[326464259,1714941608008,154.59804508,9.999e-05,2]
[326464260,1714941626010,154.59804508,9.999e-05,2]
[326464261,1714941642005,154.59804508,9.999e-05,2]
[326464262,1714941658369,162.58920269,9.999e-05,2]